[Event "Early-Titled-Tuesday-Blitz-April-23-2024"]
[Site "Chess.com"]
[Date "2024.04.23"]
[Round "2"]
[White "biveklama"]
[Black "mbojan"]
[Result "0-1"]
[WhiteElo "2611"]
[BlackElo "2910"]
[TimeControl "180+1"]
[EndTime "8:16:31 PDT"]
[Termination "mbojan won by checkmate"]

1. e4 {[%clk 0:03:00.9]} 1... a6 {[%clk 0:03:00.9]} 2. d4 {[%clk 0:02:53.6]}
2... e6 {[%clk 0:03:01.1]} 3. Nc3 {[%clk 0:02:47.1]} 3... d5 {[%clk 0:03:01.2]}
4. exd5 {[%clk 0:02:47.2]} 4... exd5 {[%clk 0:03:02.1]} 5. Nf3 {[%clk
0:02:46.3]} 5... c6 {[%clk 0:03:02.5]} 6. Bd3 {[%clk 0:02:44.9]} 6... Bd6 {[%clk
0:03:03.1]} 7. O-O {[%clk 0:02:45.2]} 7... Ne7 {[%clk 0:03:03.8]} 8. Bg5 {[%clk
0:02:44.6]} 8... f6 {[%clk 0:03:01.2]} 9. Bh4 {[%clk 0:02:44.6]} 9... O-O {[%clk
0:03:01.6]} 10. Re1 {[%clk 0:02:42.1]} 10... Re8 {[%clk 0:02:59.2]} 11. Bg3
{[%clk 0:02:41.2]} 11... Bxg3 {[%clk 0:02:58.9]} 12. hxg3 {[%clk 0:02:40.9]}
12... Nd7 {[%clk 0:02:59.6]} 13. Qd2 {[%clk 0:02:35.5]} 13... Nf8 {[%clk
0:02:59.6]} 14. Re2 {[%clk 0:02:25.7]} 14... Qd6 {[%clk 0:02:56.8]} 15. Rae1
{[%clk 0:02:24.7]} 15... Bd7 {[%clk 0:02:55.7]} 16. Na4 {[%clk 0:02:20.2]} 16...
Rad8 {[%clk 0:02:52.3]} 17. a3 {[%clk 0:01:59.4]} 17... Neg6 {[%clk 0:02:49]}
18. Nc5 {[%clk 0:01:55.3]} 18... Rxe2 {[%clk 0:02:47.5]} 19. Rxe2 {[%clk
0:01:53.9]} 19... Bc8 {[%clk 0:02:47.2]} 20. Qb4 {[%clk 0:01:53.5]} 20... Qc7
{[%clk 0:02:43.6]} 21. a4 {[%clk 0:01:50]} 21... a5 {[%clk 0:02:39.6]} 22. Qe1
{[%clk 0:01:46]} 22... b6 {[%clk 0:02:35]} 23. Bxg6 {[%clk 0:01:41.8]} 23...
hxg6 {[%clk 0:02:33.4]} 24. Nd3 {[%clk 0:01:41.9]} 24... Kf7 {[%clk 0:02:29.6]}
25. b4 {[%clk 0:01:10.9]} 25... axb4 {[%clk 0:02:28]} 26. Qxb4 {[%clk
0:01:09.2]} 26... g5 {[%clk 0:02:24.8]} 27. c4 {[%clk 0:00:59]} 27... dxc4
{[%clk 0:02:22.1]} 28. Qxc4+ {[%clk 0:00:57.4]} 28... Be6 {[%clk 0:02:22.2]} 29.
Qc3 {[%clk 0:00:23]} 29... Bd5 {[%clk 0:02:20.2]} 30. Nb4 {[%clk 0:00:21]} 30...
Qd6 {[%clk 0:02:20.5]} 31. Nxd5 {[%clk 0:00:20.3]} 31... Qxd5 {[%clk 0:02:21.4]}
32. Qb4 {[%clk 0:00:20]} 32... Ne6 {[%clk 0:02:18.8]} 33. Qxb6 {[%clk
0:00:19.4]} 33... g4 {[%clk 0:02:19.3]} 34. Nh2 {[%clk 0:00:11.6]} 34... Nxd4
{[%clk 0:02:19.2]} 35. Re1 {[%clk 0:00:10.2]} 35... Rh8 {[%clk 0:02:02.3]} 36.
Qc7+ {[%clk 0:00:04.1]} 36... Kg6 {[%clk 0:02:02.1]} 37. Qf4 {[%clk 0:00:02.8]}
37... Ne2+ {[%clk 0:01:45.7]} 38. Rxe2 {[%clk 0:00:03.1]} 38... Qd1+ {[%clk
0:01:46.4]} 39. Nf1 {[%clk 0:00:03.8]} 39... Qxf1+ {[%clk 0:01:47.2]} 40. Kxf1
{[%clk 0:00:02.7]} 40... Rh1# {[%clk 0:01:48.1]} 0-1

[Event "Early-Titled-Tuesday-Blitz-April-23-2024"]
[Site "Chess.com"]
[Date "2024.04.23"]
[Round "2"]
[White "Tol_Tol"]
[Black "ReadySkate"]
[Result "0-1"]
[WhiteElo "2380"]
[BlackElo "2647"]
[TimeControl "180+1"]
[EndTime "8:16:31 PDT"]
[Termination "ReadySkate won on time"]

1. d4 {[%clk 0:03:00.9]} 1... Nf6 {[%clk 0:02:59.3]} 2. c4 {[%clk 0:03:01.3]}
2... g6 {[%clk 0:02:59.8]} 3. Nc3 {[%clk 0:03:01.6]} 3... d5 {[%clk 0:03:00.5]}
4. cxd5 {[%clk 0:03:01.9]} 4... Nxd5 {[%clk 0:03:01.4]} 5. e4 {[%clk 0:03:02.5]}
5... Nxc3 {[%clk 0:03:02.1]} 6. bxc3 {[%clk 0:03:03.4]} 6... Bg7 {[%clk
0:03:03]} 7. Nf3 {[%clk 0:03:04.1]} 7... c5 {[%clk 0:03:03.2]} 8. Rb1 {[%clk
0:03:04]} 8... Nc6 {[%clk 0:03:03.7]} 9. d5 {[%clk 0:03:03.9]} 9... Ne5 {[%clk
0:03:04.2]} 10. Nxe5 {[%clk 0:03:03.6]} 10... Bxe5 {[%clk 0:03:05.1]} 11. Qd2
{[%clk 0:03:04.3]} 11... O-O {[%clk 0:03:05.1]} 12. f4 {[%clk 0:02:59.2]} 12...
Bg7 {[%clk 0:03:04.9]} 13. Be2 {[%clk 0:02:56]} 13... e6 {[%clk 0:03:04.8]} 14.
d6 {[%clk 0:02:47.7]} 14... e5 {[%clk 0:03:00.4]} 15. O-O {[%clk 0:02:45.3]}
15... b6 {[%clk 0:02:58.9]} 16. Bc4 {[%clk 0:02:29.5]} 16... Bb7 {[%clk
0:02:57.8]} 17. Bd5 {[%clk 0:02:12]} 17... Rb8 {[%clk 0:02:51.6]} 18. c4 {[%clk
0:02:02.5]} 18... exf4 {[%clk 0:02:44.4]} 19. Qxf4 {[%clk 0:01:56.8]} 19... Bd4+
{[%clk 0:02:43.1]} 20. Kh1 {[%clk 0:01:48.6]} 20... Bxd5 {[%clk 0:02:43.3]} 21.
cxd5 {[%clk 0:01:47.5]} 21... f6 {[%clk 0:02:39]} 22. Bb2 {[%clk 0:01:45.5]}
22... Bxb2 {[%clk 0:02:38.4]} 23. Rxb2 {[%clk 0:01:45.1]} 23... Qd7 {[%clk
0:02:39]} 24. Rbf2 {[%clk 0:01:37.6]} 24... Rbd8 {[%clk 0:02:32.7]} 25. e5
{[%clk 0:01:21.8]} 25... fxe5 {[%clk 0:02:07.3]} 26. Qxf8+ {[%clk 0:01:20.2]}
26... Rxf8 {[%clk 0:02:08.2]} 27. Rxf8+ {[%clk 0:01:20.7]} 27... Kg7 {[%clk
0:02:08.9]} 28. R8f6 {[%clk 0:01:19.2]} 28... c4 {[%clk 0:02:03.8]} 29. Re6
{[%clk 0:01:19.5]} 29... Qb5 {[%clk 0:01:57.4]} 30. Re7+ {[%clk 0:01:14.9]}
30... Kh6 {[%clk 0:01:56.2]} 31. d7 {[%clk 0:01:15.5]} 31... c3 {[%clk
0:01:50.7]} 32. Rc1 {[%clk 0:00:04.3]} 32... Qxd5 {[%clk 0:01:46.6]} 33. h3
{[%clk 0:00:04.2]} 33... e4 {[%clk 0:01:37.3]} 34. Rxc3 {[%clk 0:00:02.1]} 34...
Qd1+ {[%clk 0:01:37]} 35. Kh2 {[%clk 0:00:02.2]} 35... Qd6+ {[%clk 0:01:37.7]}
0-1

[Event "Early-Titled-Tuesday-Blitz-April-23-2024"]
[Site "Chess.com"]
[Date "2024.04.23"]
[Round "2"]
[White "isaks"]
[Black "esrosenberg"]
[Result "1-0"]
[WhiteElo "2555"]
[BlackElo "2325"]
[TimeControl "180+1"]
[EndTime "8:16:32 PDT"]
[Termination "isaks won on time"]

1. e4 {[%clk 0:03:00.9]} 1... c5 {[%clk 0:02:56.7]} 2. Nf3 {[%clk 0:03:01.3]}
2... e6 {[%clk 0:02:55.9]} 3. b3 {[%clk 0:03:00.9]} 3... d5 {[%clk 0:02:53.8]}
4. exd5 {[%clk 0:03:00.8]} 4... exd5 {[%clk 0:02:48.4]} 5. Bb5+ {[%clk
0:03:00.9]} 5... Nc6 {[%clk 0:02:47.2]} 6. O-O {[%clk 0:02:59.6]} 6... Nf6
{[%clk 0:02:35.2]} 7. Re1+ {[%clk 0:02:59.3]} 7... Be7 {[%clk 0:02:34.6]} 8. Qe2
{[%clk 0:02:59.9]} 8... Be6 {[%clk 0:02:31.7]} 9. Ng5 {[%clk 0:02:56.2]} 9...
Bf5 {[%clk 0:01:49.8]} 10. Ba3 {[%clk 0:02:44.9]} 10... h6 {[%clk 0:01:48]} 11.
Bxc5 {[%clk 0:02:43.6]} 11... hxg5 {[%clk 0:01:38.3]} 12. Qxe7+ {[%clk
0:02:41.6]} 12... Qxe7 {[%clk 0:01:36.9]} 13. Rxe7+ {[%clk 0:02:42.5]} 13... Kd8
{[%clk 0:01:37]} 14. Rxb7 {[%clk 0:02:42.4]} 14... Ne5 {[%clk 0:01:28.3]} 15.
Nc3 {[%clk 0:02:32.9]} 15... Bxc2 {[%clk 0:01:19.2]} 16. Rc1 {[%clk 0:02:28.5]}
16... Bd3 {[%clk 0:01:13.2]} 17. Ne4 {[%clk 0:02:01.5]} 17... Nfd7 {[%clk
0:00:23.1]} 18. Rxd7+ {[%clk 0:01:50.6]} 18... Nxd7 {[%clk 0:00:19.1]} 19. Nxg5
{[%clk 0:01:28.9]} 19... Nxc5 {[%clk 0:00:13.7]} 20. Nxf7+ {[%clk 0:01:26.2]}
20... Ke7 {[%clk 0:00:14.1]} 21. Nxh8 {[%clk 0:01:24.8]} 21... Rxh8 {[%clk
0:00:13]} 22. Rxc5 {[%clk 0:01:21.5]} 22... Bxb5 {[%clk 0:00:09]} 23. Rxb5
{[%clk 0:01:22.4]} 23... Kd6 {[%clk 0:00:08.2]} 24. Rb7 {[%clk 0:01:22.2]} 24...
Rc8 {[%clk 0:00:06.4]} 25. g3 {[%clk 0:01:20.9]} 25... Rc2 {[%clk 0:00:06.7]}
26. Rxa7 {[%clk 0:01:20.6]} 26... Rxd2 {[%clk 0:00:07]} 27. Kg2 {[%clk
0:01:21.1]} 27... g5 {[%clk 0:00:05.8]} 28. Kf3 {[%clk 0:01:21.4]} 28... d4
{[%clk 0:00:05.6]} 29. h4 {[%clk 0:01:20.7]} 29... gxh4 {[%clk 0:00:04.4]} 30.
gxh4 {[%clk 0:01:21.6]} 30... Ke5 {[%clk 0:00:03.6]} 31. h5 {[%clk 0:01:21.6]}
31... Rd3+ {[%clk 0:00:03.5]} 32. Kg2 {[%clk 0:01:21.8]} 32... Rd2 {[%clk
0:00:01.6]} 33. h6 {[%clk 0:01:22]} 1-0

[Event "Early-Titled-Tuesday-Blitz-April-23-2024"]
[Site "Chess.com"]
[Date "2024.04.23"]
[Round "2"]
[White "sakkikuska"]
[Black "Grandelicious"]
[Result "0-1"]
[WhiteElo "2550"]
[BlackElo "2898"]
[TimeControl "180+1"]
[EndTime "8:16:34 PDT"]
[Termination "Grandelicious won by resignation"]

1. e4 {[%clk 0:03:00.9]} 1... c5 {[%clk 0:02:56.6]} 2. Nf3 {[%clk 0:03:01.1]}
2... Nc6 {[%clk 0:02:56.9]} 3. d4 {[%clk 0:03:01.5]} 3... cxd4 {[%clk
0:02:57.8]} 4. Nxd4 {[%clk 0:03:01.9]} 4... Nf6 {[%clk 0:02:58.4]} 5. Nc3 {[%clk
0:03:01.9]} 5... e5 {[%clk 0:02:54.1]} 6. Ndb5 {[%clk 0:03:01.8]} 6... h6 {[%clk
0:02:53.5]} 7. Nd6+ {[%clk 0:02:47.3]} 7... Bxd6 {[%clk 0:02:53.7]} 8. Qxd6
{[%clk 0:02:48.2]} 8... Qe7 {[%clk 0:02:54.3]} 9. Qxe7+ {[%clk 0:02:44.9]} 9...
Kxe7 {[%clk 0:02:55.2]} 10. f3 {[%clk 0:02:41.5]} 10... Nb4 {[%clk 0:02:35.7]}
11. Bd3 {[%clk 0:02:40.1]} 11... Rd8 {[%clk 0:02:24.8]} 12. a3 {[%clk 0:02:31]}
12... Nxd3+ {[%clk 0:02:24.6]} 13. cxd3 {[%clk 0:02:31.9]} 13... d5 {[%clk
0:02:25.3]} 14. Ke2 {[%clk 0:02:23.7]} 14... b6 {[%clk 0:02:18]} 15. Rd1 {[%clk
0:02:17.6]} 15... Ba6 {[%clk 0:02:16.6]} 16. Kf2 {[%clk 0:02:18.1]} 16... Rac8
{[%clk 0:02:12]} 17. Bd2 {[%clk 0:02:13.2]} 17... d4 {[%clk 0:01:34.9]} 18. Nd5+
{[%clk 0:02:08.4]} 18... Nxd5 {[%clk 0:01:33.1]} 19. exd5 {[%clk 0:02:09.3]}
19... Rc2 {[%clk 0:01:26.2]} 20. Ke2 {[%clk 0:02:08]} 20... Rxb2 {[%clk
0:01:21.3]} 21. Rab1 {[%clk 0:02:03.8]} 21... Rxb1 {[%clk 0:01:21.2]} 22. Rxb1
{[%clk 0:02:04.3]} 22... Rxd5 {[%clk 0:01:21.9]} 23. Bb4+ {[%clk 0:02:04.8]}
23... Kd7 {[%clk 0:01:21.8]} 24. Rc1 {[%clk 0:02:04.3]} 24... Bb5 {[%clk
0:01:15.6]} 25. Bf8 {[%clk 0:01:52]} 25... g6 {[%clk 0:01:03.9]} 26. Bxh6 {[%clk
0:01:50.7]} 26... Ba6 {[%clk 0:01:00.7]} 27. g4 {[%clk 0:01:39.6]} 27... Rb5
{[%clk 0:00:59]} 28. Rd1 {[%clk 0:01:34.4]} 28... Rb3 {[%clk 0:00:54]} 29. Bf8
{[%clk 0:01:34.3]} 29... Ke6 {[%clk 0:00:44.1]} 30. h4 {[%clk 0:01:32]} 30...
Bb7 {[%clk 0:00:40.3]} 31. h5 {[%clk 0:01:24.1]} 31... gxh5 {[%clk 0:00:41.2]}
32. gxh5 {[%clk 0:01:24.4]} 32... Rb2+ {[%clk 0:00:41.4]} 33. Rd2 {[%clk
0:01:24.2]} 33... Bxf3+ {[%clk 0:00:37.2]} 34. Ke1 {[%clk 0:01:23.5]} 34... Rxd2
{[%clk 0:00:36.7]} 35. Kxd2 {[%clk 0:01:24.4]} 35... Bxh5 {[%clk 0:00:37.2]} 36.
a4 {[%clk 0:01:21.5]} 36... Kd5 {[%clk 0:00:34.4]} 37. Bb4 {[%clk 0:01:21.6]}
37... f5 {[%clk 0:00:34.3]} 38. a5 {[%clk 0:01:22.2]} 38... b5 {[%clk
0:00:34.9]} 39. Be7 {[%clk 0:01:17.9]} 39... a6 {[%clk 0:00:33.9]} 40. Bf6
{[%clk 0:01:16.8]} 40... e4 {[%clk 0:00:33.8]} 41. dxe4+ {[%clk 0:01:17.2]}
41... fxe4 {[%clk 0:00:34.7]} 42. Bg5 {[%clk 0:01:16.7]} 42... e3+ {[%clk
0:00:34.9]} 43. Kd3 {[%clk 0:01:16.7]} 43... Bg6+ {[%clk 0:00:35.5]} 44. Ke2
{[%clk 0:01:17.1]} 44... Ke4 {[%clk 0:00:36.4]} 0-1

[Event "Early-Titled-Tuesday-Blitz-April-23-2024"]
[Site "Chess.com"]
[Date "2024.04.23"]
[Round "2"]
[White "DominguezOnYoutube"]
[Black "AlphaGoosee"]
[Result "1-0"]
[WhiteElo "2939"]
[BlackElo "2625"]
[TimeControl "180+1"]
[EndTime "8:16:35 PDT"]
[Termination "DominguezOnYoutube won by checkmate"]

1. e4 {[%clk 0:03:00.9]} 1... c5 {[%clk 0:03:00.2]} 2. Nf3 {[%clk 0:03:00.8]}
2... d6 {[%clk 0:03:00.8]} 3. d4 {[%clk 0:03:01.1]} 3... cxd4 {[%clk 0:03:01.7]}
4. Nxd4 {[%clk 0:03:01.6]} 4... Nf6 {[%clk 0:03:02.5]} 5. Nc3 {[%clk 0:03:02.1]}
5... a6 {[%clk 0:03:03.2]} 6. Be3 {[%clk 0:03:02.7]} 6... e5 {[%clk 0:03:03.6]}
7. Nb3 {[%clk 0:03:02.2]} 7... Be7 {[%clk 0:03:04]} 8. f3 {[%clk 0:03:02.1]}
8... Be6 {[%clk 0:03:04.6]} 9. Qd2 {[%clk 0:03:02.4]} 9... O-O {[%clk
0:03:05.3]} 10. O-O-O {[%clk 0:03:02.4]} 10... Nbd7 {[%clk 0:03:05.9]} 11. g4
{[%clk 0:03:02]} 11... b5 {[%clk 0:03:06.6]} 12. Rg1 {[%clk 0:02:58.3]} 12...
Nb6 {[%clk 0:03:05.9]} 13. Na5 {[%clk 0:02:57.8]} 13... Qc7 {[%clk 0:02:41.3]}
14. g5 {[%clk 0:02:54.8]} 14... Nfd7 {[%clk 0:02:40.8]} 15. Kb1 {[%clk
0:02:52.4]} 15... b4 {[%clk 0:02:34.3]} 16. Nd5 {[%clk 0:02:51.9]} 16... Nxd5
{[%clk 0:02:34.3]} 17. exd5 {[%clk 0:02:52.1]} 17... Qxa5 {[%clk 0:02:34.7]} 18.
dxe6 {[%clk 0:02:52]} 18... fxe6 {[%clk 0:02:35.6]} 19. Bh3 {[%clk 0:02:51.6]}
19... Nc5 {[%clk 0:02:33.8]} 20. Bxc5 {[%clk 0:02:48.4]} 20... Qxc5 {[%clk
0:02:34.7]} 21. Bxe6+ {[%clk 0:02:48.1]} 21... Kh8 {[%clk 0:02:35.3]} 22. Bd5
{[%clk 0:02:48]} 22... Rac8 {[%clk 0:02:26.3]} 23. Rg4 {[%clk 0:02:45.3]} 23...
Rf4 {[%clk 0:02:12]} 24. Rxf4 {[%clk 0:02:15.7]} 24... exf4 {[%clk 0:02:12.9]}
25. h4 {[%clk 0:02:09.6]} 25... Bd8 {[%clk 0:02:07.2]} 26. Be4 {[%clk
0:01:50.3]} 26... Bb6 {[%clk 0:01:45]} 27. Qxf4 {[%clk 0:01:35.6]} 27... Qe5
{[%clk 0:01:40.9]} 28. Qg4 {[%clk 0:01:21.5]} 28... Rg8 {[%clk 0:01:28.5]} 29.
Bd3 {[%clk 0:01:12]} 29... g6 {[%clk 0:01:22.4]} 30. Qxb4 {[%clk 0:01:06.5]}
30... Bc5 {[%clk 0:01:15.6]} 31. Qe4 {[%clk 0:01:01.4]} 31... Qg7 {[%clk
0:01:02.3]} 32. Bc4 {[%clk 0:00:58.5]} 32... Rb8 {[%clk 0:00:58.8]} 33. Bb3
{[%clk 0:00:58.8]} 33... a5 {[%clk 0:00:45.5]} 34. Re1 {[%clk 0:00:58.2]} 34...
Qd4 {[%clk 0:00:39.5]} 35. Qe8+ {[%clk 0:00:51.2]} 35... Rxe8 {[%clk 0:00:35.9]}
36. Rxe8+ {[%clk 0:00:52.1]} 36... Kg7 {[%clk 0:00:35.7]} 37. Rg8# {[%clk
0:00:52.9]} 1-0

[Event "Early-Titled-Tuesday-Blitz-April-23-2024"]
[Site "Chess.com"]
[Date "2024.04.23"]
[Round "2"]
[White "Vse_po_kaify"]
[Black "kidagent"]
[Result "1-0"]
[WhiteElo "2576"]
[BlackElo "2350"]
[TimeControl "180+1"]
[EndTime "8:16:36 PDT"]
[Termination "Vse_po_kaify won by resignation"]

1. e4 {[%clk 0:03:00]} 1... c6 {[%clk 0:03:00]} 2. c4 {[%clk 0:02:59.8]} 2... d5
{[%clk 0:02:59.9]} 3. Nc3 {[%clk 0:03:00.4]} 3... d4 {[%clk 0:02:57.4]} 4. Nce2
{[%clk 0:02:59.4]} 4... e5 {[%clk 0:02:55.3]} 5. d3 {[%clk 0:02:58.9]} 5... Bb4+
{[%clk 0:02:49.4]} 6. Bd2 {[%clk 0:02:58.5]} 6... Bxd2+ {[%clk 0:02:49.2]} 7.
Qxd2 {[%clk 0:02:58.4]} 7... Be6 {[%clk 0:02:47]} 8. g3 {[%clk 0:02:58.5]} 8...
Nf6 {[%clk 0:02:40.2]} 9. h3 {[%clk 0:02:59]} 9... h5 {[%clk 0:02:38.3]} 10. Bg2
{[%clk 0:02:59.3]} 10... Na6 {[%clk 0:02:35.1]} 11. f4 {[%clk 0:02:59.1]} 11...
Qd6 {[%clk 0:02:31.9]} 12. Nf3 {[%clk 0:02:57.4]} 12... exf4 {[%clk 0:02:30.5]}
13. gxf4 {[%clk 0:02:57]} 13... Nxe4 {[%clk 0:02:13.4]} 14. dxe4 {[%clk
0:02:56.3]} 14... d3 {[%clk 0:02:13.8]} 15. e5 {[%clk 0:02:44.9]} 15... Qd7
{[%clk 0:02:05.8]} 16. Ned4 {[%clk 0:02:40.5]} 16... Bxc4 {[%clk 0:02:02.6]} 17.
b3 {[%clk 0:02:37]} 17... Bd5 {[%clk 0:02:01.8]} 18. Qxd3 {[%clk 0:02:14.3]}
18... Bxf3 {[%clk 0:01:56.2]} 19. Bxf3 {[%clk 0:02:13.3]} 19... c5 {[%clk
0:01:50.8]} 20. Qe4 {[%clk 0:02:03.7]} 20... O-O-O {[%clk 0:01:02.5]} 21. Ne2
{[%clk 0:01:58.8]} 21... f5 {[%clk 0:00:48.9]} 22. Qe3 {[%clk 0:01:53.3]} 22...
Kb8 {[%clk 0:00:45]} 23. Kf2 {[%clk 0:01:51.2]} 23... Nb4 {[%clk 0:00:40.5]} 24.
Rad1 {[%clk 0:01:39.2]} 24... Qxd1 {[%clk 0:00:35.4]} 25. Rxd1 {[%clk
0:01:39.6]} 25... Rxd1 {[%clk 0:00:36]} 26. Nc3 {[%clk 0:01:39.6]} 26... Rd4
{[%clk 0:00:25]} 27. a3 {[%clk 0:01:31.3]} 27... Nd3+ {[%clk 0:00:22.8]} 28. Kf1
{[%clk 0:01:21.8]} 28... Nxf4 {[%clk 0:00:20.4]} 29. Nb5 {[%clk 0:01:19.3]}
29... Nd5 {[%clk 0:00:09.4]} 30. Bxd5 {[%clk 0:01:19.2]} 30... Rxd5 {[%clk
0:00:09.6]} 31. e6 {[%clk 0:01:19.8]} 31... Re8 {[%clk 0:00:09.8]} 32. Qf4+
{[%clk 0:01:19.1]} 1-0

[Event "Early-Titled-Tuesday-Blitz-April-23-2024"]
[Site "Chess.com"]
[Date "2024.04.23"]
[Round "2"]
[White "Road2GM3000"]
[Black "bubeliang"]
[Result "0-1"]
[WhiteElo "2421"]
[BlackElo "2781"]
[TimeControl "180+1"]
[EndTime "8:16:37 PDT"]
[Termination "bubeliang won by resignation"]

1. d4 {[%clk 0:02:02.1]} 1... d5 {[%clk 0:02:58.4]} 2. c4 {[%clk 0:02:02.1]}
2... e6 {[%clk 0:02:57.8]} 3. cxd5 {[%clk 0:02:02.3]} 3... exd5 {[%clk
0:02:58.7]} 4. Nc3 {[%clk 0:02:02.6]} 4... Nf6 {[%clk 0:02:59.1]} 5. Nf3 {[%clk
0:02:02.7]} 5... Be7 {[%clk 0:02:56.5]} 6. Bg5 {[%clk 0:02:03]} 6... c6 {[%clk
0:02:56.4]} 7. e3 {[%clk 0:02:03.5]} 7... O-O {[%clk 0:02:56.5]} 8. Bd3 {[%clk
0:02:04]} 8... h6 {[%clk 0:02:56.6]} 9. Bh4 {[%clk 0:02:04.1]} 9... Re8 {[%clk
0:02:57]} 10. O-O {[%clk 0:02:04.3]} 10... a5 {[%clk 0:02:45.2]} 11. Qc2 {[%clk
0:02:04.2]} 11... b5 {[%clk 0:02:43.2]} 12. Ne5 {[%clk 0:02:03.4]} 12... Bb7
{[%clk 0:02:43]} 13. Rae1 {[%clk 0:01:56.6]} 13... Nbd7 {[%clk 0:02:39.5]} 14.
f4 {[%clk 0:01:56.3]} 14... Rc8 {[%clk 0:02:38.9]} 15. Qe2 {[%clk 0:01:52.6]}
15... b4 {[%clk 0:02:35.3]} 16. Nd1 {[%clk 0:01:46.9]} 16... c5 {[%clk
0:02:32.6]} 17. Nf2 {[%clk 0:01:43.9]} 17... c4 {[%clk 0:02:31]} 18. Bb1 {[%clk
0:01:43.8]} 18... c3 {[%clk 0:02:25.5]} 19. bxc3 {[%clk 0:01:43.2]} 19... Rxc3
{[%clk 0:02:21]} 20. Nd1 {[%clk 0:01:36.2]} 20... Rc7 {[%clk 0:02:16.9]} 21. Qd3
{[%clk 0:01:35.8]} 21... Ne4 {[%clk 0:02:12.5]} 22. Bxe7 {[%clk 0:01:36.2]}
22... Qxe7 {[%clk 0:02:11.9]} 23. Nf2 {[%clk 0:01:35.6]} 23... Ndf6 {[%clk
0:02:11.5]} 24. Nxe4 {[%clk 0:01:28]} 24... dxe4 {[%clk 0:02:10]} 25. Qb3 {[%clk
0:01:23.7]} 25... Bd5 {[%clk 0:01:54.7]} 26. Qa4 {[%clk 0:01:23.9]} 26... Ra8
{[%clk 0:01:54.5]} 27. Rc1 {[%clk 0:01:23.3]} 27... Rxc1 {[%clk 0:01:36.2]} 28.
Rxc1 {[%clk 0:01:22.7]} 28... Qb7 {[%clk 0:01:37.1]} 29. Qc2 {[%clk 0:00:57.1]}
29... b3 {[%clk 0:01:33.5]} 30. axb3 {[%clk 0:00:57.2]} 30... Qxb3 {[%clk
0:01:33.8]} 31. Qxb3 {[%clk 0:00:48.6]} 31... Bxb3 {[%clk 0:01:34.7]} 32. Bc2
{[%clk 0:00:48.7]} 32... Rc8 {[%clk 0:01:32.9]} 33. Bxb3 {[%clk 0:00:46.3]}
33... Rxc1+ {[%clk 0:01:33.7]} 34. Kf2 {[%clk 0:00:46.6]} 34... Rc7 {[%clk
0:01:29.4]} 35. d5 {[%clk 0:00:45.5]} 35... Rb7 {[%clk 0:01:29.5]} 36. Bc4
{[%clk 0:00:40.5]} 36... Nd7 {[%clk 0:01:28.2]} 37. d6 {[%clk 0:00:20.2]} 37...
Nxe5 {[%clk 0:01:26.7]} 38. fxe5 {[%clk 0:00:21.1]} 38... a4 {[%clk 0:01:26.4]}
39. Bd5 {[%clk 0:00:21.7]} 39... Ra7 {[%clk 0:01:24.4]} 40. Bc6 {[%clk
0:00:21.7]} 40... Kf8 {[%clk 0:01:21.4]} 41. Bd5 {[%clk 0:00:20.2]} 41... a3
{[%clk 0:01:21.1]} 42. Ba2 {[%clk 0:00:20.9]} 42... Rb7 {[%clk 0:01:21.1]} 43.
Kg3 {[%clk 0:00:21.6]} 43... Rb2 {[%clk 0:01:21.2]} 44. Bd5 {[%clk 0:00:21.4]}
44... a2 {[%clk 0:01:21.5]} 0-1

[Event "Early-Titled-Tuesday-Blitz-April-23-2024"]
[Site "Chess.com"]
[Date "2024.04.23"]
[Round "2"]
[White "AktilekAskarovich"]
[Black "JaackCamel"]
[Result "1-0"]
[WhiteElo "2492"]
[BlackElo "2204"]
[TimeControl "180+1"]
[EndTime "8:16:37 PDT"]
[Termination "AktilekAskarovich won by resignation"]

1. d4 {[%clk 0:02:54.7]} 1... d5 {[%clk 0:02:58.5]} 2. c4 {[%clk 0:02:55.5]}
2... e6 {[%clk 0:02:54.9]} 3. Nf3 {[%clk 0:02:55.5]} 3... c6 {[%clk 0:02:54.5]}
4. Nc3 {[%clk 0:02:52.5]} 4... dxc4 {[%clk 0:02:53.7]} 5. e3 {[%clk 0:02:33.5]}
5... b5 {[%clk 0:02:51.9]} 6. a4 {[%clk 0:02:33.9]} 6... Bb4 {[%clk 0:02:50.6]}
7. Bd2 {[%clk 0:02:32.6]} 7... a5 {[%clk 0:02:50.1]} 8. axb5 {[%clk 0:02:32.4]}
8... Bxc3 {[%clk 0:02:49.6]} 9. Bxc3 {[%clk 0:02:25.1]} 9... cxb5 {[%clk
0:02:48.8]} 10. b3 {[%clk 0:02:25.4]} 10... Bb7 {[%clk 0:02:48.6]} 11. bxc4
{[%clk 0:02:24.9]} 11... b4 {[%clk 0:02:48.6]} 12. Bb2 {[%clk 0:02:25.6]} 12...
Nf6 {[%clk 0:02:48]} 13. Be2 {[%clk 0:02:26.1]} 13... O-O {[%clk 0:02:47.4]} 14.
O-O {[%clk 0:02:26.7]} 14... Nbd7 {[%clk 0:02:47.6]} 15. Nd2 {[%clk 0:02:25.9]}
15... Qc7 {[%clk 0:02:42.2]} 16. f3 {[%clk 0:02:19.2]} 16... Rfd8 {[%clk
0:02:29.7]} 17. e4 {[%clk 0:02:15.5]} 17... e5 {[%clk 0:02:25.3]} 18. Qc2 {[%clk
0:01:47.4]} 18... exd4 {[%clk 0:01:56.1]} 19. Bxd4 {[%clk 0:01:48.3]} 19... Ne5
{[%clk 0:01:46.3]} 20. Bf2 {[%clk 0:01:39]} 20... Nfd7 {[%clk 0:01:34.5]} 21. c5
{[%clk 0:01:34.9]} 21... Ba6 {[%clk 0:01:21.8]} 22. Bxa6 {[%clk 0:01:26.8]}
22... Rxa6 {[%clk 0:01:21.3]} 23. Nc4 {[%clk 0:01:26.4]} 23... Nxc4 {[%clk
0:01:14.8]} 24. Qxc4 {[%clk 0:01:27.3]} 24... Rc6 {[%clk 0:01:14.5]} 25. Rfd1
{[%clk 0:01:22.8]} 25... Rc8 {[%clk 0:01:07.3]} 26. Qb5 {[%clk 0:01:10.8]} 26...
Ra8 {[%clk 0:00:45.4]} 27. Bg3 {[%clk 0:01:00.8]} 27... Qc8 {[%clk 0:00:39.2]}
28. Bd6 {[%clk 0:01:00.7]} 28... h6 {[%clk 0:00:35]} 29. Rxa5 {[%clk 0:00:58.6]}
29... Rxa5 {[%clk 0:00:33.5]} 30. Qxa5 {[%clk 0:00:59.5]} 30... Nxc5 {[%clk
0:00:28.7]} 31. Bxc5 {[%clk 0:01:00.4]} 31... Rxc5 {[%clk 0:00:27.9]} 32. Rd8+
{[%clk 0:01:00.6]} 1-0